Cogmind - Beta 15 @@@ ROGUE MODE // 2025.05.11 @ 20:53:54 Player: Spitfire Result: Destroyed by Y-45 Defender with Beam Rifle Performance ------------- Evolutions (0) 0 Regions Visited (4) 800 Robots Destroyed (27) 135 Value Destroyed (793) 793 Prototype IDs (2) 40 Alien Tech Used (0) 0 Bonus (0) 0 TOTAL SCORE: 1768 Bonus ------- None Cogmind --------- Core Integrity 0/250 Matter 271/300 Energy 250/250 System Corruption 0% Temperature Cool (27) Movement Core (800) Ox15 Location -9/Mines Parts ------- > --- POWER (1) -------- Ion Engine > --- PROPULSION (2) --- (None) > --- UTILITY (2) ------ High-capacity Storage Unit Signal Interpreter > --- WEAPON (2) ------- Light Assault Rifle Light Assault Rifle > --- INVENTORY (20) --- Light Ion Engine Light Ion Engine Light Nuclear Core Improved Heat Sink Small Storage Unit Structural Scanner Terrain Scan Processor Weapon Shielding Light Armor Plating Hacking Suite Medium Laser Particle Cannon Rocket Launcher Datajack Maul Peak State ------------ > --- POWER ------------ Ion Engine > --- PROPULSION ------- Light Treads Light Treads > --- UTILITY ---------- High-capacity Storage Unit Structural Scanner > --- WEAPON ----------- EM Pulse Gun EM Pulse Gun > --- INVENTORY -------- Light Ion Engine Light Nuclear Core Light Treads Small Storage Unit Signal Interpreter Terrain Scan Processor Weapon Shielding Hacking Suite Medium Laser Particle Cannon Assault Rifle Light Assault Rifle Maul [Rating: 9] Favorites ----------- Power Ion Engine Engine Ion Engine Propulsion Light Treads Treads Light Treads Utility High-capacity Storage Unit Device Structural Scanner Storage High-capacity Storage Unit Processor Signal Interpreter Weapon EM Pulse Gun Energy Gun EM Pulse Gun Ballistic Gun Light Assault Rifle Special Melee Weapon Datajack Build | -11 -10 -10 -10 -9 ------- Run | Yrd Mat Min Exi Min Slots Evolved . | . . . . . Power . | . . . . . Propulsion . | . . . . . Utility . | . . . . . Weapon . | . . . . . Parts Attached 18 | 6 6 4 1 1 Power 2 | 1 . 1 . . Engine 2 | 1 . 1 . . Core . | . . . . . Reactor . | . . . . . Propulsion 3 | 2 1 . . . Treads 3 | 2 1 . . . Leg . | . . . . . Wheel . | . . . . . Hover . | . . . . . Flight . | . . . . . Utility 5 | 1 3 1 . . Device 1 | . 1 . . . Storage 3 | 1 2 . . . Processor 1 | . . 1 . . Hackware . | . . . . . Protection . | . . . . . Artifact . | . . . . . Weapon 8 | 2 2 2 1 1 Energy Gun 3 | . 2 1 . . Energy Cannon . | . . . . . Ballistic Gun 4 | 2 . 1 . 1 Ballistic Cannon . | . . . . . Launcher . | . . . . . Special Weapon . | . . . . . Impact Weapon . | . . . . . Slashing Weapon . | . . . . . Piercing Weapon . | . . . . . Special Melee Weapon 1 | . . . 1 . Unidentified Prototypes . | . . . . . Parts Lost 7 | . 1 5 . 1 Power . | . . . . . Propulsion 3 | . . 2 . 1 Utility . | . . . . . Weapon 4 | . 1 3 . . Highest Loss Streak 2 | . 1 2 . 1 To Critical Strikes . | . . . . . Average Backups 13 | 1 8 13 16 15 Power 2 | . 1 2 3 3 Propulsion . | . . . . . Utility 5 | . 3 6 7 7 Weapon 4 | . 3 3 5 4 Tool/Special . | . . . . . Unused Backups 11 | . . . . 11 Power 3 | . . . . 3 Propulsion . | . . . . . Utility 5 | . . . . 5 Weapon 3 | . . . . 3 Tool/Special . | . . . . . Average Slot Usage (%) 84 | . 98 88 71 74 Engine 13 | . 13 14 14 14 Treads 18 | . 28 17 14 7 Device 7 | . 12 11 . . Storage 14 | . 14 14 14 14 Processor 6 | . . 2 14 14 Energy Gun 10 | . 19 14 . . Ballistic Gun 7 | . 8 13 . 24 Special Melee Weapon 5 | . . . 13 . Peak Build Rating 9 | 6 9 9 7 8 Average Rating 7 | 4 7 8 7 7 On Entrance 6 | . 6 9 8 7 Naked Turns . | . . . . . Heaviest Build 93 | 13 93 50 46 47 Greatest Support 40 | 40 40 40 20 20 Greatest Overweight (x) 15 | . 2 2 2 15 Average Overweight (x) 1 | . 1 1 2 5 Largest Inventory Capacity 25 | 8 25 20 20 20 Average Capacity 19 | 6 20 20 20 20 Most Carried 16 | 2 15 15 16 16 Average Carried 13 | 1 8 13 16 15 Final Capacity 20 | 8 20 20 20 20 Final Carried 16 | 2 15 15 16 15 Class Distribution -------------------- 100% | Mutant Dominant Class ---------------- Mutant | -10/Materials Mutant | -10/Mines Mutant | -10/Exiles Mutant | -9/Mines Resources | -11 -10 -10 -10 -9 ----------- Run | Yrd Mat Min Exi Min Matter Collected 513 | 270 141 102 . . Remotely . | . . . . . Salvage Created 1020 | 62 660 298 . . Parts 46 | . 33 13 . . Haulers Intercepted . | . . . . . Recyclers Shooed 1 | . . 1 . . Parts Field Recycled . | . . . . . Retrieved Matter . | . . . . . Parts Self-Destructed . | . . . . . Prevented . | . . . . . Kills | -11 -10 -10 -10 -9 ------- Run | Yrd Mat Min Exi Min Combat Hostiles Destroyed 21 | . 13 8 . . Guns 17 | . 9 8 . . AOE 3 | . 3 . . . Classes Destroyed 6 | 1 5 . . . Worker 1 | . 1 . . . Recycler 2 | 1 1 . . . Operator 1 | . 1 . . . Watcher 2 | . 2 . . . Swarmer 5 | . 3 2 . . Grunt 16 | . 10 6 . . Best Kill Streak 7 | 1 7 2 . . Combat Bots Only 3 | . 3 2 . . Max Kills in Single Turn 2 | 1 2 1 . . Gunslinging . | . . . . . Exploded 2 | . 2 . . . Melee . | . . . . . Uniques/NPCs Destroyed . | . . . . . Combat | -11 -10 -10 -10 -9 -------- Run | Yrd Mat Min Exi Min Hostile Shots Fired 116 | . 58 45 . 13 Missed 33 | . 22 10 . 1 Hits 83 | . 36 35 . 12 Projectile 83 | . 36 35 . 12 Damage Taken 1245 | . 559 520 . 166 Core 256 | . 83 73 . 100 Absorbed by Shields . | . . . . . Regen/Repaired (Parts) 43 | . 43 . . . Core Remaining (%) 100 | 100 . . . . Volleys Fired 86 | 3 54 27 . 2 Largest 2 | 2 2 2 . 2 Hottest 90 | 40 80 90 . 40 Shots Fired 161 | 6 97 54 . 4 Gun 161 | 6 97 54 . 4 Cannon . | . . . . . Launcher . | . . . . . Special . | . . . . . Kinetic 66 | 6 34 22 . 4 Thermal 23 | . . 23 . . Explosive . | . . . . . Electromagnetic 72 | . 63 9 . . Robot Hit Streak 10 | 6 9 10 . 4 Robot Miss Streak 4 | . 4 2 . 2 Penetration Max . | . . . . . Secondary Targets 1 | . 1 . . . Max Gunslinging Chain 1 | . 1 . . . Shots Hit Robots 103 | 6 59 36 . 2 Core Hits 48 | 2 26 18 . 2 Critical Kills . | . . . . . Critical Parts Destroyed 1 | . . 1 . . Critical Strikes 4 | . 1 3 . . Burn 2 | . . 2 . . Destroy 1 | . . 1 . . Corrupt 1 | . 1 . . . Melee Attacks . | . . . . . Impact . | . . . . . Slashing . | . . . . . Piercing . | . . . . . Sneak Attacks . | . . . . . Combat Hostiles . | . . . . . Follow-up Attacks . | . . . . . Damage Inflicted 1697 | 60 1090 525 . 22 Guns 1355 | 60 814 459 . 22 Cannons . | . . . . . Explosions 311 | . 257 54 . . Melee . | . . . . . Ramming 31 | . 19 12 . . Kinetic 475 | 60 250 143 . 22 Thermal 550 | . 257 293 . . Explosive . | . . . . . Electromagnetic 641 | . 564 77 . . Impact . | . . . . . Slashing . | . . . . . Piercing . | . . . . . Highest Corruption . | . . . . . Average Corruption . | . . . . . Corruption Purged . | . . . . . Corruption Blocked . | . . . . . Overload Shots . | . . . . . Overflow Damage 8 | . . 8 . . Projectiles . | . . . . . Explosions 8 | . . 8 . . Melee . | . . . . . Knockbacks . | . . . . . Impact . | . . . . . Kinetic . | . . . . . Secondary . | . . . . . Self-Inflicted Damage 118 | . 65 53 . . Shots 3 | . 2 1 . . Rammed 7 | . 4 3 . . Targets Rammed 8 | . 5 3 . . Kicked . | . . . . . Crushed 1 | . 1 . . . Highest Temperature 175 | . 126 175 . 18 Average Temperature 56 | . 32 81 . 18 Received Heat Transfer 495 | . 201 231 . 63 Siege Activations . | . . . . . Martial Activations . | . . . . . Shielding Activations . | . . . . . Robots Disrupted . | . . . . . Combat Hostiles . | . . . . . Robots Corrupted 1 | . 1 . . . Combat Hostiles 1 | . 1 . . . Parts Fried 1 | . 1 . . . Impact Corruptions . | . . . . . Robots Melted . | . . . . . Combat Hostiles . | . . . . . Parts Melted 1 | . . 1 . . Heat Transferred 1251 | . 350 901 . . Parts Sabotaged . | . . . . . Parts Stolen . | . . . . . Parts Stripped . | . . . . . Power Chain Reactions 5 | . 4 1 . . Alert | -11 -10 -10 -10 -9 ------- Run | Yrd Mat Min Exi Min Maximum Alert Level . | . . . . . Low Security (%) 100 | 100 100 100 . 100 Level 1 . | . . . . . Level 2 . | . . . . . Level 3 . | . . . . . Level 4 . | . . . . . Level 5 . | . . . . . High Security . | . . . . . Max Security . | . . . . . Peak Influence 163 | 5 163 65 . . Initial 48 | . . 48 . . Average 38 | . 76 11 . . Influence Increases 721 | 5 495 221 . . Destroy 0b10 Robot/C 420 | . 260 160 . . Destroy 0b10 Robot/NC 30 | 5 25 . . . Destroy Leader 104 | . 64 40 . . Trap Triggered on 0b10 10 | . 10 . . . Successful Hack 16 | . 16 . . . Disable Machine 90 | . 90 . . . Destroy Structure 21 | . 15 6 . . Partial Spotted 15 | . 15 . . . Lose Combat Pursuer 15 | . . 15 . . Influence Decreases 721 | 5 369 347 . . Entered New Map 78 | . . 78 . . Time Decay 593 | 5 359 229 . . Lost Part 50 | . 10 40 . . Squads Dispatched 3 | . 3 . . . Investigation 2 | . 2 . . . Extermination . | . . . . . Reinforcement 1 | . 1 . . . Assault . | . . . . . Garrison . | . . . . . Intercept . | . . . . . Searches Triggered . | . . . . . Construction Impeded . | . . . . . Haulers Reinforced . | . . . . . Active Scanning Responses . | . . . . . Cargo Convoy Interrupts . | . . . . . Stealth | -11 -10 -10 -10 -9 --------- Run | Yrd Mat Min Exi Min Distress Signals 1 | . 1 . . . Communications Jammed . | . . . . . Distress Signals . | . . . . . Times Spotted 33 | . 21 9 . 3 Peak Tracking Total 4 | . 4 3 . 2 Tactical Retreats 1 | . . 1 . . Traps | -11 -10 -10 -10 -9 ------- Run | Yrd Mat Min Exi Min Traps Triggered 2 | . 2 . . . Indirectly . | . . . . . Trap Hack Attempts . | . . . . . Triggered . | . . . . . Disarmed . | . . . . . Reprogrammed 1 | . 1 . . . Reused 1 | . 1 . . . Traps Extracted . | . . . . . Installed . | . . . . . Triggered 1 | . 1 . . . Machines | -11 -10 -10 -10 -9 ---------- Run | Yrd Mat Min Exi Min Machines Disabled 6 | . 6 . . . Max in Single Turn 2 | . 2 . . . Machines Repaired . | . . . . . Machines Dismantled . | . . . . . Machines Sabotaged . | . . . . . Overloaded Fab Kills . | . . . . . Hacking | -11 -10 -10 -10 -9 --------- Run | Yrd Mat Min Exi Min Machines Accessed 13 | . 9 . 4 . Terminals 7 | . 7 . . . Fabricators . | . . . . . Repair Stations 1 | . 1 . . . Recycling Units 1 | . 1 . . . Scanalyzers . | . . . . . Garrison Access . | . . . . . Total Hacks 32 | . 28 . 4 . Successful 16 | . 12 . 4 . Failed 16 | . 16 . . . Catastrophic 3 | . 3 . . . Database Lockouts . | . . . . . Manual 10 | . 10 . . . Terminals 24 | . 24 . . . Fabricators . | . . . . . Repair Stations 2 | . 2 . . . Recycling Units 2 | . 2 . . . Scanalyzers . | . . . . . Garrison Access . | . . . . . Terminal Hacks 11 | . 7 . 4 . Record 4 | . . . 4 . Prototype ID Bank 1 | . 1 . . . Branch Access Points 1 | . 1 . . . Emergency Access Points 1 | . 1 . . . Alert Level 1 | . 1 . . . Reprogram Traps 1 | . 1 . . . Zone Layout 2 | . 2 . . . Fabricator Hacks . | . . . . . Repair Station Hacks 2 | . 2 . . . Scan Component 1 | . 1 . . . Repair 1 | . 1 . . . Recycling Unit Hacks 2 | . 2 . . . Report Inventory 1 | . 1 . . . Retrieve Components 1 | . 1 . . . Scanalyzer . | . . . . . Garrison Access Hacks . | . . . . . Unauthorized Hacks 1 | . 1 . . . Terminals 1 | . 1 . . . Operators 1 | . 1 . . . Fabricators . | . . . . . Repair Stations . | . . . . . Recycling Units . | . . . . . Scanalyzers . | . . . . . Garrison Access . | . . . . . Data Cores Recovered . | . . . . . Used . | . . . . . Hacking Detections 8 | . 8 . . . Full Trace Events 3 | . 3 . . . Feedback Events . | . . . . . Feedback Blocked . | . . . . . Robot Schematics Acquired . | . . . . . Robots Built . | . . . . . Authchips . | . . . . . Time . | . . . . . Total Robot Build Rating . | . . . . . Part Schematics Acquired . | . . . . . Parts Built . | . . . . . Authchips . | . . . . . Time . | . . . . . Total Part Build Rating . | . . . . . Parts Repaired 1 | . 1 . . . Time 26 | . 26 . . . Parts Recycled . | . . . . . Recycled Matter . | . . . . . Retrieved Matter . | . . . . . Retrieved Components 7 | . 7 . . . Parts Scanalyzed . | . . . . . Part Schematics Acquired . | . . . . . Parts Damaged . | . . . . . Bothacking | -11 -10 -10 -10 -9 ------------ Run | Yrd Mat Min Exi Min Used RIF Installer . | . . . . . Robots Hacked . | . . . . . Non-combat . | . . . . . Combat . | . . . . . Robot Hacks Applied . | . . . . . Relay Couplers Released . | . . . . . Fabnet Peak Effective % . | . . . . . Robots Rewired . | . . . . . Allies Hacked . | . . . . . Hacks Repelled . | . . . . . Allies | -11 -10 -10 -10 -9 -------- Run | Yrd Mat Min Exi Min Total Allies . | . . . . . Largest Group . | . . . . . Highest-Rated Group . | . . . . . Highest-Rated Ally . | . . . . . Total Orders . | . . . . . Ally Attacks . | . . . . . Total Damage . | . . . . . Kills . | . . . . . Allies Corrupted . | . . . . . Allies Melted . | . . . . . Intel | -11 -10 -10 -10 -9 ------- Run | Yrd Mat Min Exi Min Active Infowar (turns) 2600 | . 1220 1380 . . Structural 2600 | . 1220 1380 . . Robot Analysis Total . | . . . . . Derelict Logs Recovered 1 | . . 1 . . Drone Launches . | . . . . . Drone Recoveries . | . . . . . Exploration | -11 -10 -10 -10 -9 ------------- Run | Yrd Mat Min Exi Min Turns Passed 5069 | 77 1352 1708 1907 25 Spaces Moved 1645 | 39 467 539 596 4 Core 4 | 3 . . . 1 Treads 1641 | 36 467 539 596 3 Legs . | . . . . . Wheels . | . . . . . Hover . | . . . . . Flight . | . . . . . Fastest Speed 50 | 50 160 240 320 320 Average Speed 287 | 151 244 297 320 440 Slowest Speed 800 | 160 320 320 320 800 Overloaded Moves . | . . . . . Propulsion Burnouts . | . . . . . Robots Hopped . | . . . . . Potential Cave-ins . | . . . . . Cave-ins Triggered . | . . . . . Exploration Rate (%) 55 | 5 76 99 91 5 Regions Visited 4 Branch Regions 3 Pre-discovered Areas . | . . . . . Known Exits Taken 3 | . 1 1 1 . Unknown Exits Taken 1 | 1 . . . . Scrap Searched 1 | . . 1 . . Spaces Dug . | . . . . . Terrain Destroyed 19 | . 12 7 . . Melee . | . . . . . Projectile . | . . . . . AOE 19 | . 12 7 . . Terrain Rammed . | . . . . . Walls Destroyed . | . . . . . Machines Disabled . | . . . . . Actions | -11 -10 -10 -10 -9 --------- Run | Yrd Mat Min Exi Min Total 1816 | 49 576 585 598 8 Wait 34 | . 30 4 . . Move 1641 | 38 466 538 595 4 Hop . | . . . . . Pick Up 19 | 2 12 5 . . Fast Attach 10 | 6 4 . . . Attach 7 | . 1 4 1 1 Detach 3 | . 1 . 2 . Swap 6 | . 2 3 . 1 Drop 2 | . 1 1 . . Fire 86 | 3 54 27 . 2 Melee . | . . . . . Ram . | . . . . . Kick . | . . . . . Crush 8 | . 5 3 . . Escape Stasis . | . . . . . Rewire . | . . . . . Trap . | . . . . . Miscellaneous . | . . . . . Route ------- -11/Scrapyard -10/Materials (discovered 4 exits: *Mat x2 / *Min x2) -10/Mines (discovered 4 exits: *Mat x2 / *Exi / *Sub) -10/Exiles (discovered 2 exits: *Min x2) -9/Mines History --------- Turn | Location | Event 11 | -11/Scrapyard | Discovered new exit (range 14) 78 | -11/Scrapyard | Entered Materials 122 | -10/Materials | Discovered new exit (range 17) 259 | -10/Materials | Discovered new exit (range 12) 307 | -10/Materials | Build established: Mutant 447 | -10/Materials | Repaired Ion Engine 629 | -10/Materials | Discovered new exit (range 13) 1135 | -10/Materials | Discovered new exit (range 12) 1140 | -10/Materials | Identified exit to Mines 1430 | -10/Materials | Entered Mines 1624 | -10/Mines | Discovered new exit (range 6) 1646 | -10/Mines | Discovered new exit (range 7) 1846 | -10/Mines | Core integrity fell below 50% 1932 | -10/Mines | Discovered new exit (range 9) 2131 | -10/Mines | Received a Rocket Launcher from a helpful Derelict 2515 | -10/Mines | Learned Materials interactive machine intel 2920 | -10/Mines | Identified exit to Materials 2949 | -10/Mines | Identified exit to Subcaves 3122 | -10/Mines | Deemed a non-threat by the Exiles lab entrance 3125 | -10/Mines | Discovered new exit (range 5) 3134 | -10/Mines | Identified exit to Exiles 3138 | -10/Mines | Entered Exiles 3138 | -10/Exiles | Found Exiles lab abandoned 4622 | -10/Exiles | Discovered new exit (range 14) 4657 | -10/Exiles | Identified exit to Mines 5003 | -10/Exiles | Discovered exit to Mines (range 14) 5045 | -10/Exiles | Entered Mines 5068 | -9/Mines | Core integrity fell below 20% 5070 | -9/Mines | Destroyed by Y-45 Defender with Beam Rifle Last Messages --------------- 04187_ Connecting with BIN's Terminal... >>Record! "BIN-BYE" To the spacelab! 04245_ Connecting with DEC's Terminal... >>Record! "DEC-BYE" For the record, I voted to stay and build some amazing defenses, but HEX said this is a lab, not a battlefield. Anyway, you're too late, MAIN.C, Warlord sends his regards. 04296_ Connecting with HEX's Terminal... >>Record! "HEX-BYE" To anyone looking for us: Don't. 04328_ Connecting with EX-Vault Access... 04337_ Connecting with EX-Prototypes Database... 04622_ EXIT=FOUND 04657_ EXIT=IDENTIFIED: MINES 05003_ EXIT=FOUND: MINES LOCATION=MINES GOAL=ESCAPE 05057_ Lgt. Treads destroyed. Map ----- +----------------------------------------------------+ | | | | | | | | | | | | | | | | | | | | | | | | | | | | | | | | | ?????????????????????????????????????????????????? | | ?????????????????????????????????????????????????? | | ?????????????????????????????????????????????????? | | ?????????????????????######??????????????????????? | | ????????????????????##" "##?????????????????????? | | ????????????????????#!! !!#?????????????????????? | | ????????????????????#!! !!#?????????????????????? | | ?????????????????????# #####??????????????????? | | ????????????????????###YY## ##?????????????????? | | ????????????????????# @ #?????????????????? | | ???????????????????# #????????????????? | | ???????????????????# ## #?????????????? | | ???????????????? s #### t #?????????????? | | ????????????? #????## ## #?????????????? | | ????????????? #########??????? #?? ????????????? | | ???????????????????????????????#??? #???????????? | | ????????????????????????????????????? ??????????? | | ?????????????????????????????????????? ?????????? | | ?????????????????????????????????????????????????? | | ?????????????????????????????????????????????????? | | ?????????????????????????????????????????????????? | | ?????????????????????????????????????????????????? | | ?????????????????????????????????????????????????? | | ?????????????????????????????????????????????????? | | ?????????????????????????????????????????????????? | | ?????????????????????????????????????????????????? | | ?????????????????????????????????????????????????? | | ?????????????????????????????????????????????????? | | ?????????????????????????????????????????????????? | | ?????????????????????????????????????????????????? | | ?????????????????????????????????????????????????? | | ?????????????????????????????????????????????????? | | ?????????????????????????????????????????????????? | | ?????????????????????????????????????????????????? | +----------------------------------------------------+ Best States ------------- Heat Dissipation 25 Energy Generation 10 Energy Capacity 250 Matter Stores 300 Matter Capacity 300 Sight Range 16 Terrain Scan Density 10 Evasion (%) 40 Recoil Reduction 2 Item Schematics ----------------- None Robot Schematics ------------------ None Fabricated ------------ Nothing Repaired ---------- Ion Engine | 28% | -10/Materials Alien Tech Used ----------------- None Achievements -------------- None Challenges ------------ None Game ------ Seed EncryptedMatterTrap Manual? 0 Play Time 00:27:40 Cumulative 17.0 hours Start 2025.05.11 @ 20:19:57 End 2025.05.11 @ 20:53:54 Sessions 1 Manual Loads 0 Difficulty Rogue Special Mode None Game No. 13 Rogue 13 Adventurer 0 Explorer 0 Win Type - Total 1 Types 1/0/0/0/0/0/0/0/0/0 Lore% 9 Gallery% 20 Achievement% 22 Wizard Run 0 Options --------- Layout 1 ASCII 0 Keyboard 0 Movement Mouse Keybinds 0 Fullscreen 2 Font 24/Terminus Map View 50x35 Zoom Use 0% Tactical HUD 1 Map Filters NONE Filters NONE Steam 1 RUN: 53c5e9d1-55be-43ce-bee9-9a03a5e10db3